fUST/lending_fUST_20240110
["ID","MTS","AMOUNT","RATE_DAILY","PERIOD"]
[310942042,1704825042022,-301.78874788,0.00034816,4]
[310942043,1704825042031,-152.38900235,0.0003482,7]
[310942044,1704825042040,-154.41457912,0.00034824,7]
[310942045,1704825042049,-154.41457912,0.00034882,7]
[310942046,1704825042058,-151.0,0.00034897,2]
[310942047,1704825042068,-3472.7300767,0.00034899,4]
[310942048,1704825042078,-154.90705577,0.000349,2]
[310942049,1704825042088,-242.25670695,0.000349,30]
[310942050,1704825042098,-659.06311478,0.00034965,7]
[310942051,1704825042107,-659.06311478,0.00034978,7]
[310942052,1704825042116,-24140.18610249,0.0003498,14]
[310942053,1704825042125,-152.38900235,0.00034987,7]
[310942054,1704825042135,-50000.0,0.00034996,7]
[310942055,1704825042144,-290.09823479,0.00035,4]
[310942056,1704825042153,-283.822248,0.00035,7]
[310942057,1704825042164,-7803.1787706,0.00035,4]
[310942058,1704825042173,-2967.08,0.00035,2]
[310942059,1704825042184,-7503.56939095,0.00035,45]
[310942060,1704825042194,-6802.96007234,0.00035,4]
[310942061,1704825042203,-332.52969855,0.00035,4]
[310942062,1704825042214,-3042.83244916,0.00035,2]
[310942063,1704825042224,-592.64784145,0.00035,2]
[310942064,1704825042235,-154.92922707,0.00035,2]
[310942065,1704825042245,-772.94490574,0.00035,14]
[310942066,1704825042255,-1596.96171091,0.00035,7]
[310942067,1704825042265,-156.08945156,0.00035,6]
[310942068,1704825042275,-500.0,0.00035,7]
[310942069,1704825042286,-13128.67224115,0.00035,2]
[310942070,1704825042296,-152.38900235,0.00035028,7]
[310942071,1704825042307,-659.06311478,0.00035079,7]
[310942072,1704825042317,-431.12624763,0.000351,2]
[310942073,1704825042327,-431.12624763,0.000351,2]
[310942074,1704825042337,-431.12624763,0.000351,2]
[310942075,1704825042350,-431.12624763,0.000351,2]
[310942076,1704825042360,-431.12624763,0.000351,2]
[310942077,1704825042369,-431.12624763,0.000351,2]
[310942078,1704825042379,-431.12624763,0.000351,2]
[310942079,1704825042388,-431.12624763,0.000351,2]
[310942080,1704825042398,-431.12624763,0.000351,2]
[310942081,1704825042409,-431.12624,0.000351,2]
[310942082,1704825042418,-659.06311478,0.00035104,7]
[310942083,1704825042428,-5000.0,0.00035131,7]
[310942084,1704825042437,-659.06311478,0.00035139,7]
[310942085,1704825042447,-659.06311478,0.00035146,7]
[310942086,1704825042456,-659.06311478,0.00035262,7]
[310942087,1704825042465,-1000.0,0.00035318,2]
[310942088,1704825042474,-620.00000014,0.00035379,2]
[310942089,1704825042483,-603.57749575,0.00035401,7]
[310942090,1704825042493,-152.38900235,0.00035402,7]
[310942091,1704825042502,-152.38900235,0.00035454,7]
[310942092,1704825042511,-301.0,0.00035497,2]
[310942093,1704825042521,-10000.0,0.00035499,30]
[310942094,1704825042530,-47058.90272354,0.000355,14]
[310942095,1704825042540,-225.469193,0.00035514,10]
[310942096,1704825042549,-251316.40983328,0.00035515,2]
[310942097,1704825042566,-10202.84952288,0.00035515,2]
[310942098,1704825042578,-14480.74064384,0.00035515,2]
[310942099,1704825042587,-1500.0,0.000356,2]
[310942100,1704825042597,-200.0,0.000356,7]
[310942101,1704825042606,-157.03719731,0.00035605,4]
[310942102,1704825042615,-946.99985386,0.00035605,4]
[310942103,1704825042624,-273.44366527,0.00035605,4]
[310942104,1704825042633,-154.92253873,0.00035605,4]
[310942105,1704825042643,-2482.39965936,0.00035605,2]
[310942106,1704825042653,-152.38900235,0.00035605,7]
[310942107,1704825042662,-155.13880198,0.00035611,4]
[310942108,1704825042672,-921.51950466,0.00035611,4]
[310942109,1704825042682,-174.76839857,0.00035612,4]
[310942110,1704825042692,-154.92253564,0.00035612,4]
[310942111,1704825042702,-1126.49701628,0.00035613,4]
[310942112,1704825042711,-195.17243971,0.00035614,4]
[310942113,1704825042721,-605.84313125,0.00035614,4]
[310942114,1704825042730,-199.57598445,0.00035615,4]
[310942115,1704825042739,-298.86404899,0.00035615,4]
[310942116,1704825042748,-742.8426154,0.00035615,4]
[310942117,1704825042758,-305.823861,0.00035616,4]
[310942118,1704825042767,-479.97184,0.00035616,2]
[310942119,1704825042777,-479.97184,0.00035616,2]
[310942120,1704825042786,-151.0,0.00035616,2]
[310942121,1704825042796,-2484.964723,0.00035616,2]
[310942122,1704825042805,-2484.964723,0.00035616,2]
[310942123,1704825042814,-401.196956,0.00035616,2]
[310942124,1704825042823,-401.196956,0.00035616,2]
[310942125,1704825042833,-194.7524305,0.00035616,4]
[310942126,1704825042844,-649.46848965,0.00035616,4]
[310942127,1704825042853,-4039.92201284,0.00035616,4]
[310942129,1704825042863,-1025.4344042,0.00035616,2]
[310942131,1704825042873,-716.90104227,0.00035616,4]
[310942133,1704825042883,-245.01576584,0.00035616,4]
[310942135,1704825042892,-282.50801309,0.00035616,3]
[310942137,1704825042902,-155.76608,0.00035616,4]
[310942139,1704825042911,-500.0,0.00035616,2]
[310942141,1704825042920,-504.43281686,0.00035616,2]
[310942143,1704825042929,-500.0,0.00035616,2]
[310942145,1704825042937,-500.0,0.00035616,2]
[310942147,1704825042947,-546.15,0.00035616,2]
[310942149,1704825042955,-500.0,0.00035616,2]
[310942151,1704825042964,-517.86667267,0.00035616,2]
[310942153,1704825042974,-500.0,0.00035616,2]
[310942155,1704825042983,-500.0,0.00035616,2]
[310942157,1704825042992,-500.0,0.00035616,2]
[310942159,1704825043002,-500.0,0.00035616,2]
[310942161,1704825043010,-505.30607923,0.00035616,2]
[310942163,1704825043019,-500.0,0.00035616,2]
[310942165,1704825043029,-502.59317857,0.00035616,2]
[310942167,1704825043038,-500.0,0.00035616,2]
[310942169,1704825043048,-501.71932076,0.00035616,2]
[310942171,1704825043056,-500.0,0.00035616,2]
[310942172,1704825043066,-554.90031122,0.00035616,2]
[310942173,1704825043075,-500.0,0.00035616,2]
[310942174,1704825043084,-500.0,0.00035616,2]
[310942176,1704825043094,-500.0,0.00035616,2]
[310942177,1704825043103,-500.69611721,0.00035616,2]
[310942179,1704825043113,-232.68741591,0.00035616,2]
[310942181,1704825043122,-567.1617221,0.00035616,2]
[310942183,1704825043131,-500.0,0.00035616,2]
[310942185,1704825043140,-200.0,0.00035616,2]
[310942187,1704825043149,-500.0,0.00035616,2]
[310942189,1704825043158,-500.0,0.00035616,2]
[310942190,1704825043167,-500.0,0.00035616,2]
[310942191,1704825043176,-500.0,0.00035616,2]
[310942192,1704825043186,-500.0,0.00035616,2]
[310942193,1704825043195,-527.37573656,0.00035616,2]
[310942194,1704825043204,-500.0,0.00035616,2]
[310942206,1704825043310,-500.0,0.00035616,2]
[310942209,1704825043320,-517.84558427,0.00035616,2]
[310942212,1704825043330,-307.51765686,0.00035616,2]
[310942214,1704825043340,-167.69414103,0.00035616,2]
[310942216,1704825043351,-500.0,0.00035616,2]
[310942218,1704825043361,-523.74,0.00035616,2]
[310942219,1704825043371,-500.0,0.00035616,2]
[310942221,1704825043381,-503.6912404,0.00035616,2]
[310942224,1704825043391,-506.84954695,0.00035616,2]
[310942225,1704825043401,-500.0,0.00035616,2]
[310942227,1704825043411,-500.0,0.00035616,2]
[310942229,1704825043422,-504.28366915,0.00035616,2]
[310942231,1704825043432,-500.0,0.00035616,2]
[310942234,1704825043441,-500.0,0.00035616,2]
[310942236,1704825043452,-381.12834279,0.00035616,2]
[310942237,1704825043462,-500.0,0.00035616,2]
[310942239,1704825043471,-539.46030145,0.00035616,2]
[310942241,1704825043480,-500.0,0.00035616,2]
[310942243,1704825043490,-500.0,0.00035616,2]
[310942244,1704825043499,-513.49699543,0.00035616,2]
[310942246,1704825043508,-303.78797855,0.00035616,2]
[310942247,1704825043517,-500.0,0.00035616,2]
[310942249,1704825043527,-500.0,0.00035616,2]
[310942251,1704825043538,-500.0,0.00035616,2]
[310942253,1704825043548,-500.0,0.00035616,2]
[310942255,1704825043557,-638.75462537,0.00035616,2]
[310942257,1704825043567,-500.0,0.00035616,2]
[310942259,1704825043577,-522.56090064,0.00035616,2]
[310942261,1704825043586,-613.2,0.00035616,2]
[310942263,1704825043595,-500.0,0.00035616,2]
[310942265,1704825043604,-500.0,0.00035616,2]
[310942267,1704825043614,-500.0,0.00035616,2]
[310942269,1704825043625,-517.52671074,0.00035616,2]
[310942271,1704825043635,-500.0,0.00035616,2]
[310942273,1704825043644,-299.67374614,0.00035616,2]
[310942275,1704825043653,-500.0,0.00035616,2]
[310942277,1704825043663,-500.0,0.00035616,2]
[310942278,1704825043671,-500.0,0.00035616,2]
[310942281,1704825043682,-500.0,0.00035616,2]
[310942283,1704825043692,-500.0,0.00035616,2]
[310942284,1704825043703,-220.0,0.00035616,2]
[310942286,1704825043713,-502.59833004,0.00035616,2]
[310942289,1704825043723,-500.0,0.00035616,2]
[310942291,1704825043733,-2404.57,0.00035616,2]
[310942293,1704825043743,-500.0,0.00035616,2]
[310942295,1704825043753,-205.3030203,0.00035616,2]
[310942297,1704825043762,-500.0,0.00035616,2]
[310942299,1704825043772,-500.0,0.00035616,2]
[310942300,1704825043781,-500.0,0.00035616,2]
[310942302,1704825043791,-422.84860486,0.00035616,2]
[310942304,1704825043800,-500.0,0.00035616,2]
[310942307,1704825043810,-457.66355864,0.00035616,2]
[310942309,1704825043819,-507.81220053,0.00035616,2]
[310942311,1704825043830,-506.80683171,0.00035616,2]
[310942313,1704825043839,-500.0,0.00035616,2]
[310942315,1704825043850,-500.0,0.00035616,2]
[310942317,1704825043859,-500.0,0.00035616,2]
[310942319,1704825043869,-500.0,0.00035616,2]
[310942321,1704825043878,-600.0,0.00035616,2]
[310942323,1704825043887,-608.25509253,0.00035616,2]
[310942325,1704825043897,-500.0,0.00035616,2]
[310942327,1704825043906,-502.57378155,0.00035616,2]
[310942329,1704825043916,-511.46965573,0.00035616,2]
[310942331,1704825043925,-500.93,0.00035616,2]
[310942333,1704825043934,-547.39227854,0.00035616,2]
[310942335,1704825043943,-504.80763993,0.00035616,2]
[310942337,1704825043952,-500.0,0.00035616,2]
[310942339,1704825043961,-522.91458442,0.00035616,2]
[310942341,1704825043971,-503.17940485,0.00035616,2]
[310942343,1704825043980,-602.6218737,0.00035616,2]
[310942345,1704825043989,-500.0,0.00035616,2]
[310942347,1704825043998,-301.78455933,0.00035616,2]
[310942349,1704825044007,-500.0,0.00035616,2]
[310942351,1704825044017,-500.0,0.00035616,2]
[310942353,1704825044026,-465.27810589,0.00035616,2]
[310942355,1704825044036,-580.61,0.00035616,2]
[310942356,1704825044047,-535.27883269,0.00035616,2]
[310942358,1704825044057,-621.3,0.00035616,2]
[310942360,1704825044066,-500.0,0.00035616,2]
[310942363,1704825044076,-156.10732819,0.00035616,2]
[310942365,1704825044086,-500.0,0.00035616,2]
[310942366,1704825044096,-500.0,0.00035616,2]
[310942369,1704825044105,-500.0,0.00035616,2]
[310942371,1704825044115,-500.0,0.00035616,2]
[310942372,1704825044124,-500.0,0.00035616,2]
[310942374,1704825044134,-500.0,0.00035616,2]
[310942377,1704825044145,-515.07091795,0.00035616,2]
[310942379,1704825044154,-456.63432085,0.00035616,2]
[310942381,1704825044164,-500.0,0.00035616,2]
[310942382,1704825044174,-500.0,0.00035616,2]
[310942385,1704825044185,-501.84157681,0.00035616,2]
[310942386,1704825044195,-529.83107318,0.00035616,2]
[310942389,1704825044206,-500.0,0.00035616,2]
[310942390,1704825044216,-500.0,0.00035616,2]
[310942393,1704825044226,-500.0,0.00035616,2]
[310942394,1704825044235,-500.0,0.00035616,2]
[310942396,1704825044245,-500.41320758,0.00035616,2]
[310942398,1704825044254,-3915.57,0.00035616,2]
[310942400,1704825044263,-500.0,0.00035616,2]
[310942402,1704825044274,-500.0,0.00035616,2]
[310942404,1704825044283,-500.0,0.00035616,2]
[310942406,1704825044293,-935.62,0.00035616,2]
[310942408,1704825044302,-500.0,0.00035616,2]
[310942410,1704825044311,-500.0,0.00035616,2]
[310942412,1704825044320,-1543.17,0.00035616,2]
[310942414,1704825044329,-502.36846477,0.00035616,2]
[310942416,1704825044338,-500.0,0.00035616,2]
[310942418,1704825044350,-501.03286925,0.00035616,2]
[310942420,1704825044360,-500.0,0.00035616,2]
[310942422,1704825044370,-500.0,0.00035616,2]
[310942424,1704825044379,-500.0,0.00035616,2]
[310942426,1704825044388,-500.0,0.00035616,2]
[310942428,1704825044398,-335.92479617,0.00035616,2]
[310942429,1704825044407,-500.0,0.00035616,2]
[310942432,1704825044417,-502.32816693,0.00035616,2]
[310942434,1704825044427,-500.0,0.00035616,2]
[310942436,1704825044436,-500.9652095,0.00035616,2]
[310942437,1704825044447,-500.0,0.00035616,2]
[310942439,1704825044458,-500.0,0.00035616,2]
[310942442,1704825044469,-500.0,0.00035616,2]
[310942444,1704825044479,-1000.0,0.00035616,2]
[310942446,1704825044489,-500.79142979,0.00035616,2]
[310942448,1704825044499,-500.0,0.00035616,2]
[310942450,1704825044508,-500.0,0.00035616,2]
[310942452,1704825044519,-500.0,0.00035616,2]
[310942454,1704825044529,-500.0,0.00035616,2]
[310942455,1704825044538,-1376.14,0.00035616,2]
[310942458,1704825044548,-1376.14,0.00035616,2]
[310942459,1704825044557,-1376.14,0.00035616,2]
[310942462,1704825044566,-1376.14,0.00035616,2]
[310942463,1704825044576,-1376.14,0.00035616,2]
[310942465,1704825044586,-1376.14,0.00035616,2]
[310942467,1704825044597,-1376.14,0.00035616,2]
[310942469,1704825044607,-1047.0,0.00035616,2]
[310942471,1704825044617,-1376.14,0.00035616,2]
[310942473,1704825044627,-1376.14,0.00035616,2]
[310942476,1704825044637,-1376.14,0.00035616,2]
[310942478,1704825044647,-1376.14,0.00035616,2]
[310942479,1704825044656,-1376.14,0.00035616,2]
[310942482,1704825044666,-1376.14,0.00035616,2]
[310942484,1704825044676,-1376.14,0.00035616,2]
[310942485,1704825044686,-1376.14,0.00035616,2]
[310942487,1704825044695,-1376.14,0.00035616,2]
[310942490,1704825044706,-1376.14,0.00035616,2]
[310942492,1704825044716,-1376.14,0.00035616,2]
[310942493,1704825044726,-1376.14,0.00035616,2]
[310942495,1704825044735,-1376.14,0.00035616,2]
[310942498,1704825044745,-1376.14,0.00035616,2]
[310942500,1704825044756,-1376.14,0.00035616,2]
[310942501,1704825044766,-1376.14,0.00035616,2]
[310942503,1704825044777,-1376.21841585,0.00035616,2]
[310942505,1704825044788,-501.91854851,0.00035616,2]
[310942507,1704825044799,-500.0,0.00035616,2]
[310942508,1704825044809,-500.53498006,0.00035616,2]
[310942509,1704825044819,-500.00960015,0.00035616,2]
[310942510,1704825044828,-500.0,0.00035616,2]
[310942511,1704825044837,-500.0,0.00035616,2]
[310942512,1704825044848,-500.0,0.00035616,2]
[310942513,1704825044859,-500.0,0.00035616,2]
[310942514,1704825044870,-500.0,0.00035616,2]
[310942515,1704825044880,-500.0,0.00035616,2]
[310942516,1704825044890,-500.0,0.00035616,2]
[310942517,1704825044899,-500.0,0.00035616,2]
[310942518,1704825044909,-292.46488415,0.00035616,2]
[310942519,1704825044919,-500.0,0.00035616,2]
[310942520,1704825044929,-500.90203694,0.00035616,2]
[310942521,1704825044938,-500.0,0.00035616,2]
[310942522,1704825044947,-520.06525507,0.00035616,2]
[310942523,1704825044956,-501.41201149,0.00035616,2]
[310942524,1704825044966,-500.0,0.00035616,2]
[310942525,1704825044977,-500.0,0.00035616,2]
[310942526,1704825044987,-500.55118604,0.00035616,2]
[310942527,1704825044997,-743.88,0.00035616,2]
[310942528,1704825045007,-500.0,0.00035616,2]
[310942529,1704825045016,-500.0,0.00035616,2]
[310942530,1704825045025,-500.0,0.00035616,2]
[310942531,1704825045034,-500.0,0.00035616,2]
[310942533,1704825045044,-500.0,0.00035616,2]
[310942535,1704825045054,-504.49001362,0.00035616,2]
[310942537,1704825045065,-472.46249936,0.00035616,2]
[310942539,1704825045075,-502.68075034,0.00035616,2]
[310942541,1704825045086,-500.0,0.00035616,2]
[310942543,1704825045098,-608.58,0.00035616,2]
[310942545,1704825045108,-500.0,0.00035616,2]
[310942547,1704825045119,-500.0,0.00035616,2]
[310942549,1704825045128,-500.0,0.00035616,2]
[310942551,1704825045138,-520.82,0.00035616,2]
[310942553,1704825045147,-500.0,0.00035616,2]
[310942555,1704825045158,-500.0,0.00035616,2]
[310942557,1704825045168,-207.68327922,0.00035616,2]
[310942559,1704825045177,-562.27630934,0.00035616,2]
[310942561,1704825045187,-500.0,0.00035616,2]
[310942563,1704825045196,-506.33631279,0.00035616,2]
[310942565,1704825045207,-511.16530344,0.00035616,2]
[310942567,1704825045217,-500.0,0.00035616,2]
[310942569,1704825045227,-500.0,0.00035616,2]
[310942571,1704825045236,-625.84,0.00035616,2]
[310942572,1704825045246,-500.0,0.00035616,2]
[310942575,1704825045257,-500.0,0.00035616,2]
[310942576,1704825045267,-500.0,0.00035616,2]
[310942578,1704825045277,-504.98246174,0.00035616,2]
[310942581,1704825045288,-500.0,0.00035616,2]
[310942583,1704825045297,-500.0,0.00035616,2]
[310942584,1704825045306,-500.0,0.00035616,2]
[310942586,1704825045316,-197.03020795,0.00035616,2]
[310942588,1704825045326,-205.37417053,0.00035616,2]
[310942590,1704825045336,-1000.0,0.00035616,2]
[310942592,1704825045346,-506.83720369,0.00035616,2]
[310942595,1704825045356,-500.0,0.00035616,2]
[310942597,1704825045366,-9762.02285107,0.00035616,10]
[310942599,1704825045377,-2696.13,0.00035616,2]
[310942601,1704825045387,-502.3919799,0.00035616,2]
[310942602,1704825045397,-508.34241231,0.00035616,2]
[310942605,1704825045408,-500.0,0.00035616,2]
[310942606,1704825045418,-500.0,0.00035616,2]
[310942608,1704825045429,-500.0,0.00035616,2]
[310942610,1704825045439,-501.47854896,0.00035616,2]
[310942612,1704825045448,-500.0,0.00035616,2]
[310942614,1704825045457,-500.0,0.00035616,2]
[310942617,1704825045467,-500.0,0.00035616,2]
[310942618,1704825045476,-513.51702195,0.00035616,2]
[310942620,1704825045485,-500.0,0.00035616,2]
[310942623,1704825045494,-500.0,0.00035616,2]
[310942624,1704825045503,-500.0,0.00035616,2]
[310942626,1704825045515,-500.0,0.00035616,2]
[310942629,1704825045529,-500.45328493,0.00035616,2]
[310942631,1704825045538,-501.43481431,0.00035616,2]
[310942633,1704825045548,-500.0,0.00035616,2]
[310942635,1704825045557,-500.0,0.00035616,2]
[310942637,1704825045567,-1855.24,0.00035616,2]
[310942639,1704825045576,-603.27854241,0.00035616,2]
[310942641,1704825045585,-500.0,0.00035616,2]
[310942643,1704825045595,-500.0,0.00035616,2]
[310942645,1704825045607,-500.0,0.00035616,2]
[310942647,1704825045617,-500.0,0.00035616,2]
[310942649,1704825045626,-220.47107168,0.00035616,2]
[310942651,1704825045636,-369.30655585,0.00035616,2]
[310942653,1704825045645,-500.0,0.00035616,2]
[310942655,1704825045654,-500.0,0.00035616,2]
[310942657,1704825045663,-503.21238465,0.00035616,2]
[310942659,1704825045672,-500.0,0.00035616,2]
[310942660,1704825045681,-500.70829364,0.00035616,2]
[310942662,1704825045690,-500.0,0.00035616,2]
[310942664,1704825045699,-500.0,0.00035616,2]
[310942666,1704825045708,-500.0,0.00035616,2]
[310942669,1704825045719,-500.0,0.00035616,2]
[310942671,1704825045728,-500.0,0.00035616,2]
[310942675,1704825045737,-300.90221714,0.00035616,2]
[310942677,1704825045747,-500.0,0.00035616,2]
[310942680,1704825045756,-500.0,0.00035616,2]
[310942684,1704825045766,-636.68,0.00035616,2]
[310942687,1704825045775,-500.0,0.00035616,2]
[310942690,1704825045784,-1488.9,0.00035616,2]
[310942693,1704825045793,-493.31782965,0.00035616,2]
[310942696,1704825045802,-501.16573885,0.00035616,2]
[310942699,1704825045812,-1851.96,0.00035616,2]
[310942721,1704825045912,-500.0,0.00035616,2]
[310942724,1704825045922,-500.0,0.00035616,2]
[310942727,1704825045931,-500.0,0.00035616,2]
[310942730,1704825045940,-1669.17,0.00035616,2]
[310942732,1704825045949,-1445.16,0.00035616,2]
[310942734,1704825045958,-604.73200117,0.00035616,2]
[310942735,1704825045967,-500.0,0.00035616,2]
[310942737,1704825045976,-500.0,0.00035616,2]
[310942739,1704825045985,-500.0,0.00035616,2]
[310942741,1704825045995,-500.0,0.00035616,2]
[310942743,1704825046004,-500.0,0.00035616,2]
[310942745,1704825046013,-2056.36,0.00035616,2]
[310942747,1704825046023,-2056.36,0.00035616,2]
[310942749,1704825046032,-2056.36,0.00035616,2]
[310942752,1704825046042,-500.0,0.00035616,2]
[310942753,1704825046050,-2056.36,0.00035616,2]
[310942755,1704825046059,-2056.36,0.00035616,2]
[310942757,1704825046068,-2056.36,0.00035616,2]
[310942759,1704825046077,-2056.36,0.00035616,2]
[310942761,1704825046086,-2056.36,0.00035616,2]
[310942763,1704825046095,-2056.36,0.00035616,2]
[310942765,1704825046103,-2056.36,0.00035616,2]
[310942767,1704825046112,-500.0,0.00035616,2]
[310942769,1704825046122,-2056.36,0.00035616,2]
[310942771,1704825046130,-2056.36,0.00035616,2]
[310942773,1704825046140,-2056.36,0.00035616,2]
[310942775,1704825046149,-2056.36,0.00035616,2]
[310942777,1704825046158,-2056.36,0.00035616,2]
[310942779,1704825046166,-2056.36,0.00035616,2]
[310942781,1704825046176,-2056.36,0.00035616,2]
[310942783,1704825046185,-2056.36,0.00035616,2]
[310942785,1704825046194,-356.09894193,0.00035616,2]
[310942787,1704825046203,-2056.36,0.00035616,2]
[310942789,1704825046212,-2056.36,0.00035616,2]
[310942791,1704825046220,-2056.36,0.00035616,2]
[310942793,1704825046229,-2056.36,0.00035616,2]
[310942795,1704825046238,-2056.36,0.00035616,2]
[310942797,1704825046247,-2056.54844852,0.00035616,2]
[310942799,1704825046256,-500.0,0.00035616,2]
[310942801,1704825046267,-500.0,0.00035616,2]
[310942803,1704825046276,-524.91,0.00035616,2]
[310942805,1704825046285,-504.10970385,0.00035616,2]
[310942807,1704825046294,-2530.6,0.00035616,2]
[310942809,1704825046303,-500.0,0.00035616,2]
[310942811,1704825046312,-500.0,0.00035616,2]
[310942813,1704825046321,-8793.55,0.00035616,2]
[310942815,1704825046330,-500.0,0.00035616,2]
[310942817,1704825046339,-500.0,0.00035616,2]
[310942819,1704825046348,-500.0,0.00035616,2]
[310942821,1704825046356,-500.0,0.00035616,2]
[310942823,1704825046365,-5912.92,0.00035616,2]
[310942825,1704825046374,-500.0,0.00035616,2]
[310942827,1704825046383,-500.0,0.00035616,2]
[310942829,1704825046393,-500.0,0.00035616,2]
[310942830,1704825046402,-488.60322616,0.00035616,2]
[310942833,1704825046411,-500.0,0.00035616,2]
[310942835,1704825046420,-8755.63,0.00035616,2]
[310942837,1704825046429,-500.0,0.00035616,2]
[310942839,1704825046438,-176.41422842,0.00035616,2]
[310942841,1704825046447,-500.0,0.00035616,2]
[310942843,1704825046456,-500.0,0.00035616,2]
[310942844,1704825046466,-2029.73,0.00035616,2]
[310942847,1704825046475,-500.0,0.00035616,2]
[310942848,1704825046484,-3985.81,0.00035616,2]
[310942850,1704825046493,-500.86593983,0.00035616,2]
[310942853,1704825046502,-722.61,0.00035616,2]
[310942854,1704825046511,-500.0,0.00035616,2]
[310942857,1704825046521,-1303.44,0.00035616,2]
[310942859,1704825046530,-500.64041583,0.00035616,2]
[310942861,1704825046539,-503.99642735,0.00035616,2]
[310942862,1704825046548,-500.0,0.00035616,2]
[310942865,1704825046557,-500.0,0.00035616,2]
[310942868,1704825046566,-1888.24,0.00035616,2]
[310942871,1704825046575,-49739.82,0.00035616,2]
[310942874,1704825046584,-6056.22,0.00035616,2]
[310942877,1704825046594,-4006.42,0.00035616,2]
[310942880,1704825046603,-500.0,0.00035616,2]
[310942882,1704825046612,-500.0,0.00035616,2]
[310942885,1704825046622,-500.0,0.00035616,2]
[310942888,1704825046632,-500.0,0.00035616,2]
[310942891,1704825046641,-500.0,0.00035616,2]
[310942893,1704825046650,-18762.34,0.00035616,2]
[310942895,1704825046659,-500.0,0.00035616,2]
[310942896,1704825046669,-500.0,0.00035616,2]
[310942898,1704825046679,-508.52,0.00035616,2]
[310942900,1704825046688,-500.0,0.00035616,2]
[310942903,1704825046698,-500.0,0.00035616,2]
[310942905,1704825046707,-544.39,0.00035616,2]
[310942907,1704825046716,-514.17470731,0.00035616,2]
[310942909,1704825046725,-500.0,0.00035616,2]
[310942910,1704825046734,-500.0,0.00035616,2]
[310942912,1704825046743,-2091.64,0.00035616,2]
[310942914,1704825046753,-2980.19,0.00035616,2]
[310942916,1704825046762,-500.0,0.00035616,2]
[310942918,1704825046771,-500.0,0.00035616,2]
[310942919,1704825046780,-500.0,0.00035616,2]
[310942920,1704825046790,-1358.42,0.00035616,2]
[310942921,1704825046799,-500.0,0.00035616,5]
[310942922,1704825046808,-500.0,0.00035616,2]
[310942923,1704825046818,-552.07,0.00035616,2]
[310942924,1704825046827,-500.35757381,0.00035616,2]
[310942925,1704825046837,-500.0,0.00035616,2]
[310942926,1704825046847,-500.0,0.00035616,2]
[310942927,1704825046856,-500.0,0.00035616,2]
[310942928,1704825046864,-500.0,0.00035616,2]
[310942929,1704825046874,-500.0,0.00035616,2]
[310942930,1704825046883,-519.22,0.00035616,2]
[310942931,1704825046892,-505.88505677,0.00035616,2]
[310942933,1704825046902,-628.7334169,0.00035616,2]
[310942934,1704825046911,-635.08238346,0.00035616,2]
[310942935,1704825046920,-4392.41,0.00035616,2]
[310942936,1704825046930,-500.0,0.00035616,2]
[310942937,1704825046940,-500.0,0.00035616,2]
[310942938,1704825046950,-500.0,0.00035616,2]
[310942939,1704825046960,-2003.49,0.00035616,2]
[310942940,1704825046970,-500.0,0.00035616,2]
[310942941,1704825046980,-500.0,0.00035616,2]
[310942942,1704825046990,-500.0,0.00035616,2]
[310942943,1704825047000,-500.0,0.00035616,2]
[310942944,1704825047011,-233.79913134,0.00035616,2]